fUST/lending_fUST_20241114
["ID","MTS","AMOUNT","RATE_DAILY","PERIOD"]
[342188887,1731573056932,-505.28820191,0.00022191,2]
[342188888,1731573056942,-500.0,0.00022191,2]
[342188889,1731573056952,-500.0,0.00022191,2]
[342188890,1731573056962,-514.61671432,0.00022191,2]
[342188891,1731573056971,-500.0,0.00022191,2]
[342188892,1731573056980,-643.66345849,0.00022191,2]
[342188893,1731573056990,-551.35577381,0.00022191,2]
[342188894,1731573056999,-311.37748888,0.00022191,2]
[342188895,1731573057009,-544.33240048,0.00022191,2]
[342188896,1731573057019,-518.85047428,0.00022191,2]
[342188897,1731573057029,-506.12640107,0.00022191,2]
[342188898,1731573057038,-501.5841235,0.00022191,2]
[342188899,1731573057048,-500.0,0.00022191,2]
[342188900,1731573057057,-525.43709826,0.00022191,2]
[342188901,1731573057069,-1522.575808,0.00022191,7]
[342188902,1731573057078,-1522.575808,0.00022191,7]
[342188903,1731573057088,-500.0,0.00022191,2]
[342188904,1731573057098,-487.196558,0.00022191,7]
[342188905,1731573057107,-487.196558,0.00022191,7]
[342188906,1731573057117,-487.196558,0.00022191,7]
[342188907,1731573057126,-539.74397937,0.00022191,2]
[342188908,1731573057136,-584.24,0.00022191,2]
[342188909,1731573057145,-487.196558,0.00022191,7]
[342188910,1731573057155,-487.196558,0.00022191,7]
[342188911,1731573057164,-1522.575808,0.00022191,7]
[342188912,1731573057173,-500.0,0.00022191,2]
[342188913,1731573057183,-500.0,0.00022191,2]
[342188914,1731573057192,-1522.575808,0.00022191,7]
[342188915,1731573057202,-1522.575808,0.00022191,7]
[342188916,1731573057211,-1522.575802,0.00022191,7]
[342188917,1731573057220,-542.82703411,0.00022191,2]
[342188918,1731573057230,-500.0,0.00022191,2]
[342188919,1731573057239,-487.196558,0.00022191,7]
[342188920,1731573057249,-500.0,0.00022191,2]
[342188921,1731573057258,-500.0,0.00022191,2]
[342188922,1731573057269,-524.93514499,0.00022191,2]
[342188923,1731573057278,-641.52,0.00022191,2]
[342188924,1731573057287,-500.0,0.00022191,2]
[342188925,1731573057296,-539.88688463,0.00022191,2]
[342188926,1731573057305,-503.18000079,0.00022191,2]
[342188927,1731573057316,-500.0,0.00022191,2]
[342188928,1731573057325,-513.82919538,0.00022191,2]
[342188929,1731573057335,-500.0,0.00022191,2]
[342188930,1731573057344,-151.0,0.00022191,7]
[342188931,1731573057354,-151.0,0.00022191,7]
[342188932,1731573057364,-151.0,0.00022191,7]
[342188933,1731573057374,-684.54,0.00022191,2]
[342188934,1731573057383,-500.0,0.00022191,2]
[342188935,1731573057392,-151.0,0.00022191,7]
[342188936,1731573057402,-500.0,0.00022191,2]
[342188937,1731573057411,-155.475568,0.00022191,7]
[342188938,1731573057420,-501.81820838,0.00022191,2]
[342188939,1731573057429,-500.0,0.00022191,2]
[342188940,1731573057439,-500.0,0.00022191,2]
[342188941,1731573057448,-500.0,0.00022191,2]
[342188942,1731573057457,-276.68582682,0.00022191,2]
[342188943,1731573057467,-498.14547468,0.00022191,2]
[342188944,1731573057476,-509.41496797,0.00022191,2]
[342188945,1731573057486,-509.3,0.00022191,2]
[342188946,1731573057495,-500.0,0.00022191,2]
[342188947,1731573057505,-500.0,0.00022191,2]
[342188948,1731573057515,-500.0,0.00022191,2]
[342188949,1731573057524,-500.0,0.00022191,2]
[342188950,1731573057534,-500.0,0.00022191,2]
[342188951,1731573057544,-500.0,0.00022191,2]
[342188952,1731573057553,-506.73856517,0.00022191,2]
[342188953,1731573057563,-508.73446737,0.00022191,2]
[342188954,1731573057572,-507.93626093,0.00022191,2]
[342188955,1731573057582,-501.46944638,0.00022191,2]
[342188956,1731573057592,-542.15147256,0.00022191,2]
[342188957,1731573057602,-609.56306451,0.00022191,2]
[342188958,1731573057611,-697.04,0.00022191,2]
[342188959,1731573057621,-500.0,0.00022191,2]
[342188960,1731573057630,-503.66692239,0.00022191,2]
[342188961,1731573057639,-500.0,0.00022191,2]
[342188962,1731573057649,-500.0,0.00022191,2]
[342188963,1731573057658,-500.0,0.00022191,2]
[342188964,1731573057668,-500.0,0.00022191,2]
[342188965,1731573057677,-500.0,0.00022191,2]
[342188966,1731573057686,-500.0,0.00022191,2]
[342188967,1731573057695,-252.73784996,0.00022191,2]
[342188968,1731573057705,-500.0,0.00022191,2]
[342188969,1731573057715,-686.84,0.00022191,2]
[342188970,1731573057724,-358.89487447,0.00022191,2]
[342188971,1731573057733,-500.0,0.00022191,2]
[342188972,1731573057743,-500.0,0.00022191,2]
[342188973,1731573057752,-500.0,0.00022191,2]
[342188974,1731573057762,-500.0,0.00022191,2]
[342188975,1731573057771,-500.0,0.00022191,2]
[342188976,1731573057781,-500.0,0.00022191,2]
[342188977,1731573057790,-500.0,0.00022191,2]
[342188978,1731573057799,-500.0,0.00022191,2]
[342188979,1731573057809,-500.0,0.00022191,2]
[342188980,1731573057823,-151.0,0.00022191,7]
[342188981,1731573057832,-153.810272,0.00022191,7]
[342188982,1731573057842,-503.49626303,0.00022191,2]
[342188983,1731573057855,-500.0,0.00022191,2]
[342188984,1731573057865,-500.0,0.00022191,2]
[342188985,1731573057874,-502.68951635,0.00022191,2]
[342188986,1731573057884,-410.2149761,0.00022191,2]
[342188987,1731573057897,-500.0,0.00022191,2]
[342188988,1731573057907,-708.18,0.00022191,2]
[342188989,1731573057916,-501.93075606,0.00022191,2]
[342188990,1731573057927,-648.32,0.00022191,2]
[342188991,1731573057939,-324.1421519,0.00022191,2]
[342188992,1731573057949,-500.0,0.00022191,2]
[342188993,1731573057958,-524.86617161,0.00022191,2]
[342188994,1731573057968,-500.0,0.00022191,2]
[342188995,1731573057978,-500.0,0.00022191,2]
[342188996,1731573057994,-646.65,0.00022191,2]
[342188997,1731573058012,-500.0,0.00022191,2]
[342188998,1731573058031,-500.0,0.00022191,2]
[342188999,1731573058048,-500.0,0.00022191,2]
[342189000,1731573058059,-500.0,0.00022191,2]
[342189001,1731573058071,-500.0,0.00022191,2]
[342189002,1731573058081,-500.0,0.00022191,2]
[342189003,1731573058091,-525.36154169,0.00022191,2]
[342189004,1731573058100,-500.0,0.00022191,2]
[342189005,1731573058110,-500.0,0.00022191,2]
[342189006,1731573058120,-500.0,0.00022191,2]
[342189007,1731573058130,-508.75856603,0.00022191,2]
[342189008,1731573058139,-959.98,0.00022191,2]
[342189009,1731573058148,-500.0,0.00022191,2]
[342189010,1731573058157,-500.0,0.00022191,2]
[342189011,1731573058167,-503.26375842,0.00022191,2]
[342189012,1731573058176,-500.0,0.00022191,2]
[342189013,1731573058186,-500.0,0.00022191,2]
[342189014,1731573058195,-500.0,0.00022191,2]
[342189015,1731573058205,-500.0,0.00022191,2]
[342189016,1731573058214,-395.09694122,0.00022191,2]
[342189017,1731573058223,-667.32,0.00022191,2]
[342189018,1731573058233,-524.3192516,0.00022191,2]
[342189019,1731573058242,-500.0,0.00022191,2]
[342189020,1731573058252,-1000.0,0.00022191,5]
[342189021,1731573058262,-614.21,0.00022191,2]
[342189022,1731573058271,-543.45286785,0.00022191,2]
[342189023,1731573058280,-500.0,0.00022191,2]
[342189024,1731573058290,-500.0,0.00022191,2]
[342189025,1731573058299,-1074.05,0.00022191,2]
[342189026,1731573058309,-500.0,0.00022191,2]
[342189027,1731573058321,-500.0,0.00022191,2]
[342189028,1731573058330,-500.0,0.00022191,2]
[342189029,1731573058339,-216.70562666,0.00022191,2]
[342189030,1731573058349,-500.0,0.00022191,2]
[342189031,1731573058361,-500.0,0.00022191,2]
[342189032,1731573058370,-751.02,0.00022191,2]
[342189033,1731573058379,-500.0,0.00022191,2]
[342189034,1731573058388,-500.0,0.00022191,2]
[342189035,1731573058397,-500.0,0.00022191,2]
[342189036,1731573058407,-367.699136,0.00022191,7]
[342189037,1731573058416,-500.0,0.00022191,2]
[342189038,1731573058425,-367.699136,0.00022191,7]
[342189039,1731573058434,-367.699136,0.00022191,7]
[342189040,1731573058443,-500.0,0.00022191,2]
[342189041,1731573058453,-367.699136,0.00022191,7]
[342189042,1731573058463,-561.13614992,0.00022191,2]
[342189043,1731573058472,-367.699136,0.00022191,7]
[342189044,1731573058481,-367.699136,0.00022191,7]
[342189045,1731573058490,-500.0,0.00022191,2]
[342189046,1731573058500,-500.0,0.00022191,2]
[342189047,1731573058509,-500.0,0.00022191,2]
[342189048,1731573058518,-500.0,0.00022191,2]
[342189049,1731573058527,-339.68655684,0.00022191,2]
[342189050,1731573058536,-512.67847408,0.00022191,2]
[342189051,1731573058546,-500.0,0.00022191,2]
[342189052,1731573058555,-500.0,0.00022191,2]
[342189053,1731573058567,-500.0,0.00022191,2]
[342189054,1731573058576,-500.0,0.00022191,2]
[342189055,1731573058585,-558.27737238,0.00022191,2]
[342189056,1731573058594,-500.0,0.00022191,2]
[342189057,1731573058603,-500.0,0.00022191,2]
[342189058,1731573058612,-524.45183643,0.00022191,2]
[342189059,1731573058621,-1017.4,0.00022191,2]
[342189060,1731573058630,-505.00794883,0.00022191,2]
[342189061,1731573058640,-502.47499251,0.00022191,2]
[342189062,1731573058649,-500.0,0.00022191,2]
[342189063,1731573058658,-503.59494516,0.00022191,2]
[342189064,1731573058667,-500.0,0.00022191,2]
[342189065,1731573058676,-500.0,0.00022191,2]
[342189066,1731573058685,-700.81,0.00022191,2]
[342189067,1731573058694,-500.0,0.00022191,2]
[342189068,1731573058703,-500.0,0.00022191,2]
[342189069,1731573058712,-526.04787072,0.00022191,2]
[342189070,1731573058721,-500.0,0.00022191,2]
[342189071,1731573058730,-500.0,0.00022191,2]
[342189072,1731573058745,-500.0,0.00022191,2]
[342189073,1731573058755,-500.0,0.00022191,2]
[342189074,1731573058764,-524.11396904,0.00022191,2]
[342189075,1731573058773,-599.22,0.00022191,2]
[342189076,1731573058782,-500.0,0.00022191,2]
[342189077,1731573058791,-500.0,0.00022191,2]
[342189078,1731573058800,-500.0,0.00022191,2]
[342189079,1731573058810,-494.27987336,0.00022191,2]
[342189080,1731573058822,-500.0,0.00022191,2]
[342189081,1731573058831,-500.0,0.00022191,2]
[342189082,1731573058843,-500.0,0.00022191,2]
[342189083,1731573058857,-500.0,0.00022191,2]
[342189084,1731573058866,-500.0,0.00022191,2]
[342189085,1731573058875,-545.20752987,0.00022191,2]
[342189086,1731573058884,-783.57,0.00022191,2]
[342189087,1731573058894,-3283.68949,0.00022191,7]
[342189088,1731573058903,-2336.0,0.00022191,2]
[342189089,1731573058912,-3283.68949,0.00022191,7]
[342189090,1731573058922,-3283.68949,0.00022191,7]
[342189091,1731573058933,-646.63,0.00022191,2]
[342189092,1731573058943,-500.0,0.00022191,2]
[342189093,1731573058952,-500.0,0.00022191,2]
[342189094,1731573059062,-3283.68949,0.00022191,7]
[342189095,1731573059073,-3283.68949,0.00022191,7]
[342189096,1731573059083,-3283.68949,0.00022191,7]
[342189097,1731573059092,-500.0,0.00022191,2]
[342189098,1731573059102,-517.48551883,0.00022191,2]
[342189099,1731573059112,-500.0,0.00022191,2]
[342189100,1731573059121,-500.0,0.00022191,2]
[342189101,1731573059131,-500.0,0.00022191,2]
[342189102,1731573059141,-627.53,0.00022191,2]
[342189103,1731573059151,-591.97610552,0.00022191,2]
[342189104,1731573059160,-589.25,0.00022191,2]
[342189105,1731573059170,-500.0,0.00022191,2]
[342189106,1731573059181,-500.0,0.00022191,2]
[342189107,1731573059192,-500.0,0.00022191,2]
[342189108,1731573059201,-501.59602121,0.00022191,2]
[342189109,1731573059211,-500.0,0.00022191,2]
[342189110,1731573059220,-500.0,0.00022191,2]
[342189111,1731573059230,-500.0,0.00022191,2]
[342189112,1731573059239,-500.0,0.00022191,2]
[342189113,1731573059248,-500.0,0.00022191,2]
[342189114,1731573059259,-500.0,0.00022191,2]
[342189115,1731573059269,-501.83616944,0.00022191,2]
[342189116,1731573059279,-304.002608,0.00022191,7]
[342189117,1731573059288,-304.002608,0.00022191,7]
[342189118,1731573059297,-304.002608,0.00022191,7]
[342189119,1731573059307,-500.0,0.00022191,2]
[342189120,1731573059317,-500.0,0.00022191,2]
[342189121,1731573059326,-537.38,0.00022191,2]
[342189122,1731573059335,-304.002608,0.00022191,7]
[342189123,1731573059345,-304.002608,0.00022191,7]
[342189124,1731573059354,-304.002608,0.00022191,7]
[342189125,1731573059364,-541.73,0.00022191,2]
[342189126,1731573059373,-328.95333202,0.00022191,2]
[342189127,1731573059383,-509.52895326,0.00022191,2]
[342189128,1731573059396,-500.0,0.00022191,2]
[342189129,1731573059415,-500.0,0.00022191,2]
[342189130,1731573059425,-500.0,0.00022191,2]
[342189131,1731573059435,-518.78654729,0.00022191,2]
[342189132,1731573059444,-500.0,0.00022191,2]
[342189133,1731573059453,-500.0,0.00022191,2]
[342189134,1731573059463,-500.0,0.00022191,2]
[342189135,1731573059472,-500.0,0.00022191,2]
[342189136,1731573059481,-169.02725393,0.00022191,2]
[342189137,1731573059490,-500.0,0.00022191,2]
[342189138,1731573059500,-500.0,0.00022191,2]
[342189139,1731573059510,-544.1739274,0.00022191,2]
[342189140,1731573059519,-867.05,0.00022191,2]
[342189141,1731573059528,-500.0,0.00022191,2]
[342189142,1731573059538,-500.0,0.00022191,2]
[342189143,1731573059548,-503.59,0.00022191,2]
[342189144,1731573059557,-713.83,0.00022191,2]
[342189145,1731573059568,-547.41,0.00022191,2]
[342189146,1731573059577,-500.0,0.00022191,2]
[342189147,1731573059586,-873.165166,0.00022191,7]
[342189148,1731573059595,-873.165166,0.00022191,7]
[342189149,1731573059605,-873.165166,0.00022191,7]
[342189150,1731573059614,-500.0,0.00022191,2]
[342189151,1731573059624,-500.0,0.00022191,2]
[342189152,1731573059634,-228.93713838,0.00022191,2]
[342189153,1731573059644,-873.165166,0.00022191,7]
[342189154,1731573059654,-500.0,0.00022191,2]
[342189155,1731573059663,-873.165166,0.00022191,7]
[342189156,1731573059672,-873.165171,0.00022191,7]
[342189157,1731573059682,-500.98584556,0.00022191,2]
[342189158,1731573059691,-504.74577485,0.00022191,2]
[342189159,1731573059700,-856.07,0.00022191,2]
[342189160,1731573059710,-500.0,0.00022191,2]
[342189161,1731573059720,-500.0,0.00022191,2]
[342189162,1731573059730,-533.31961249,0.00022191,2]
[342189163,1731573059740,-500.0,0.00022191,2]
[342189164,1731573059750,-500.0,0.00022191,2]
[342189165,1731573059760,-543.16694508,0.00022191,2]
[342189166,1731573059770,-500.0,0.00022191,2]
[342189167,1731573059780,-500.0,0.00022191,2]
[342189168,1731573059789,-503.29658493,0.00022191,2]
[342189169,1731573059799,-500.0,0.00022191,2]
[342189170,1731573059808,-500.0,0.00022191,2]
[342189171,1731573059821,-500.0,0.00022191,2]
[342189172,1731573059831,-402.61532583,0.00022191,2]
[342189173,1731573059841,-500.0,0.00022191,2]
[342189174,1731573059853,-500.0,0.00022191,2]
[342189175,1731573059863,-500.0,0.00022191,2]
[342189176,1731573059873,-500.0,0.00022191,2]
[342189177,1731573059882,-500.0,0.00022191,2]
[342189178,1731573059893,-500.0,0.00022191,2]
[342189179,1731573059903,-500.0,0.00022191,2]
[342189180,1731573059912,-500.0,0.00022191,2]
[342189181,1731573059921,-500.0,0.00022191,2]
[342189182,1731573059932,-500.0,0.00022191,2]
[342189183,1731573059942,-699.21,0.00022191,2]
[342189184,1731573059952,-505.82894632,0.00022191,2]
[342189185,1731573059961,-501.79964262,0.00022191,2]
[342189186,1731573059971,-500.0,0.00022191,2]
[342189187,1731573059982,-1084.66,0.00022191,2]
[342189188,1731573059991,-500.0,0.00022191,2]
[342189189,1731573060000,-926.01,0.00022191,2]
[342189190,1731573060010,-500.0,0.00022191,2]
[342189191,1731573060020,-500.0,0.00022191,2]
[342189192,1731573060030,-500.0,0.00022191,2]
[342189193,1731573060040,-500.0,0.00022191,2]
[342189194,1731573060049,-628.32,0.00022191,2]
[342189195,1731573060059,-500.0,0.00022191,2]
[342189196,1731573060072,-500.0,0.00022191,2]
[342189197,1731573060082,-500.0,0.00022191,2]
[342189198,1731573060092,-517.80825858,0.00022191,2]
[342189199,1731573060101,-638.942516,0.00022191,7]
[342189200,1731573060111,-500.0,0.00022191,2]
[342189201,1731573060121,-500.0,0.00022191,2]
[342189202,1731573060131,-638.942516,0.00022191,7]
[342189203,1731573060141,-638.942516,0.00022191,7]
[342189204,1731573060151,-500.0,0.00022191,2]
[342189205,1731573060160,-638.942516,0.00022191,7]
[342189206,1731573060169,-1271.83,0.00022191,2]
[342189207,1731573060179,-500.0,0.00022191,2]
[342189208,1731573060192,-638.942516,0.00022191,7]
[342189209,1731573060201,-638.942516,0.00022191,7]
[342189210,1731573060210,-638.942516,0.00022191,7]
[342189211,1731573060220,-638.942514,0.00022191,7]
[342189212,1731573060229,-311.05223918,0.00022191,2]
[342189213,1731573060239,-513.80949443,0.00022191,2]
[342189214,1731573060249,-500.0,0.00022191,2]
[342189215,1731573060259,-500.0,0.00022191,2]
[342189216,1731573060268,-500.0,0.00022191,2]
[342189217,1731573060277,-500.0,0.00022191,2]
[342189218,1731573060287,-500.0,0.00022191,2]
[342189219,1731573060297,-500.0,0.00022191,2]
[342189220,1731573060307,-500.0,0.00022191,2]
[342189221,1731573060319,-500.0,0.00022191,2]
[342189222,1731573060328,-500.0,0.00022191,2]
[342189223,1731573060338,-500.0,0.00022191,2]
[342189224,1731573060348,-500.0,0.00022191,2]
[342189225,1731573060357,-818.86,0.00022191,2]
[342189226,1731573060367,-500.0,0.00022191,2]
[342189227,1731573060377,-500.0,0.00022191,2]
[342189229,1731573060386,-500.0,0.00022191,2]
[342189230,1731573060395,-500.0,0.00022191,2]
[342189231,1731573060404,-500.0,0.00022191,2]
[342189232,1731573060413,-500.0,0.00022191,2]
[342189233,1731573060422,-500.0,0.00022191,2]
[342189234,1731573060432,-500.0,0.00022191,2]
[342189235,1731573060441,-630.46633587,0.00022191,2]
[342189236,1731573060451,-583.79,0.00022191,2]
[342189237,1731573060466,-543.56002106,0.00022191,2]
[342189238,1731573060475,-1276.77936,0.00022191,7]
[342189239,1731573060485,-1276.77936,0.00022191,7]
[342189240,1731573060495,-500.0,0.00022191,2]
[342189241,1731573060506,-1276.77936,0.00022191,7]
[342189242,1731573060516,-500.0,0.00022191,2]
[342189243,1731573060525,-649.414355,0.00022191,7]
[342189244,1731573060536,-1276.77936,0.00022191,7]
[342189245,1731573060545,-649.414355,0.00022191,7]
[342189246,1731573060555,-1276.77936,0.00022191,7]
[342189247,1731573060566,-649.414355,0.00022191,7]
[342189248,1731573060576,-1276.77936,0.00022191,7]
[342189249,1731573060585,-500.0,0.00022191,2]
[342189250,1731573060594,-500.0,0.00022191,2]
[342189251,1731573060604,-500.0,0.00022191,2]
[342189252,1731573060614,-17345.35,0.00022191,2]
[342189253,1731573060623,-500.0,0.00022191,2]
[342189254,1731573060633,-649.414355,0.00022191,7]
[342189255,1731573060642,-649.414355,0.00022191,7]
[342189256,1731573060652,-649.414354,0.00022191,7]
[342189257,1731573060662,-521.60981688,0.00022191,2]
[342189258,1731573060672,-527.191899,0.00022191,7]
[342189259,1731573060681,-527.191899,0.00022191,7]
[342189260,1731573060691,-508.9,0.00022191,2]
[342189261,1731573060701,-527.191899,0.00022191,7]
[342189262,1731573060710,-500.0,0.00022191,2]
[342189263,1731573060719,-500.0,0.00022191,2]
[342189264,1731573060729,-500.0,0.00022191,2]
[342189265,1731573060740,-500.0,0.00022191,2]
[342189266,1731573060751,-527.191899,0.00022191,7]
[342189267,1731573060760,-500.0,0.00022191,2]
[342189268,1731573060770,-527.191899,0.00022191,7]
[342189269,1731573060780,-527.191897,0.00022191,7]
[342189270,1731573060789,-511.15,0.00022191,2]
[342189271,1731573060799,-500.0,0.00022191,2]
[342189272,1731573060808,-500.0,0.00022191,2]
[342189273,1731573060818,-500.0,0.00022191,2]
[342189274,1731573060827,-500.0,0.00022191,2]
[342189275,1731573060836,-500.0,0.00022191,2]
[342189276,1731573060847,-500.0,0.00022191,2]
[342189277,1731573060860,-1740.72,0.00022191,2]
[342189278,1731573060869,-500.0,0.00022191,2]
[342189279,1731573060879,-500.0,0.00022191,2]
[342189280,1731573060888,-756.89,0.00022191,2]
[342189281,1731573060898,-587.10110663,0.00022191,2]
[342189282,1731573060907,-151.0,0.00022191,7]
[342189283,1731573060917,-277.722639,0.00022191,7]
[342189284,1731573060927,-507.87401825,0.00022191,2]
[342189285,1731573060936,-500.0,0.00022191,2]
[342189286,1731573060946,-829.87,0.00022191,2]
[342189287,1731573060955,-500.0,0.00022191,2]
[342189288,1731573060964,-625.89,0.00022191,2]
[342189289,1731573060974,-500.0,0.00022191,2]
[342189290,1731573060983,-500.0,0.00022191,2]
[342189291,1731573060993,-500.0,0.00022191,2]
[342189292,1731573061003,-500.0,0.00022191,2]
[342189293,1731573061013,-4760.481665,0.00022191,7]
[342189294,1731573061022,-4760.481665,0.00022191,7]
[342189295,1731573061032,-4760.481665,0.00022191,7]
[342189296,1731573061042,-500.0,0.00022191,2]
[342189297,1731573061051,-524.99137023,0.00022191,2]
[342189298,1731573061061,-4760.481665,0.00022191,7]
[342189299,1731573061073,-512.02,0.00022191,2]
[342189300,1731573061083,-4760.481665,0.00022191,7]
[342189301,1731573061092,-4760.481665,0.00022191,7]
[342189302,1731573061102,-718.12,0.00022191,2]
[342189303,1731573061111,-964.91,0.00022191,2]
[342189304,1731573061121,-500.0,0.00022191,2]
[342189305,1731573061130,-4845.78,0.00022191,2]
[342189306,1731573061139,-500.0,0.00022191,2]
[342189307,1731573061150,-500.0,0.00022191,2]
[342189308,1731573061159,-352.15062456,0.00022191,2]
[342189309,1731573061169,-1984.18,0.00022191,2]
[342189310,1731573061178,-535.12707858,0.00022191,2]
[342189311,1731573061188,-500.0,0.00022191,2]
[342189312,1731573061296,-500.0,0.00022191,2]
[342189313,1731573061306,-500.0,0.00022191,2]
[342189314,1731573061316,-500.0,0.00022191,2]
[342189315,1731573061336,-1439.61,0.00022191,2]
[342189316,1731573061345,-256.426982,0.00022191,7]
[342189317,1731573061355,-500.0,0.00022191,2]
[342189318,1731573061364,-500.0,0.00022191,2]
[342189319,1731573061373,-725.06,0.00022191,2]
[342189320,1731573061382,-500.0,0.00022191,2]
[342189321,1731573061392,-500.0,0.00022191,2]
[342189322,1731573061401,-500.0,0.00022191,2]
[342189323,1731573061411,-215.98970485,0.00022191,2]
[342189324,1731573061420,-500.0,0.00022191,2]
[342189325,1731573061431,-500.9259406,0.00022191,2]
[342189326,1731573061440,-509.36411424,0.00022191,2]
[342189327,1731573061450,-922.15,0.00022191,2]
[342189328,1731573061460,-500.0,0.00022191,2]
[342189329,1731573061470,-500.0,0.00022191,2]
[342189330,1731573061480,-500.0,0.00022191,2]
[342189331,1731573061490,-500.0,0.00022191,2]
[342189332,1731573061500,-510.81337321,0.00022191,2]
[342189333,1731573061510,-500.0,0.00022191,2]
[342189334,1731573061519,-500.0,0.00022191,2]
[342189335,1731573061529,-500.0,0.00022191,2]
[342189336,1731573061539,-500.0,0.00022191,2]
[342189337,1731573061550,-500.0,0.00022191,2]
[342189338,1731573061561,-500.0,0.00022191,2]
[342189339,1731573061573,-500.0,0.00022191,2]
[342189340,1731573061583,-500.0,0.00022191,2]
[342189341,1731573061593,-500.0,0.00022191,2]
[342189342,1731573061602,-2469.96,0.00022191,2]
[342189343,1731573061611,-1519.617696,0.00022191,7]
[342189344,1731573061621,-1519.617696,0.00022191,7]
[342189345,1731573061631,-1519.617696,0.00022191,7]
[342189346,1731573061640,-927.32,0.00022191,2]
[342189347,1731573061650,-500.0,0.00022191,2]
[342189348,1731573061660,-503.66431261,0.00022191,2]
[342189349,1731573061669,-332.80392805,0.00022191,2]
[342189350,1731573061678,-500.0,0.00022191,2]
[342189351,1731573061687,-1519.617696,0.00022191,7]
[342189352,1731573061697,-1519.617696,0.00022191,7]
[342189353,1731573061706,-1519.617696,0.00022191,7]
[342189354,1731573061715,-679.79,0.00022191,2]
[342189355,1731573061725,-500.0,0.00022191,2]
[342189356,1731573061734,-483.95332901,0.00022191,2]
[342189357,1731573061744,-373.35954709,0.00022191,2]
[342189358,1731573061753,-500.0,0.00022191,2]
[342189359,1731573061763,-842.88,0.00022191,2]
[342189360,1731573061773,-500.0,0.00022191,2]
[342189361,1731573061782,-1415.94,0.00022191,2]
[342189362,1731573061792,-500.0,0.00022191,2]
[342189363,1731573061801,-1146.99,0.00022191,2]
[342189364,1731573061810,-635.27348185,0.00022191,2]
[342189365,1731573061821,-500.0,0.00022191,2]
[342189366,1731573061830,-590.83978287,0.00022191,2]
[342189367,1731573061839,-500.0,0.00022191,2]
[342189368,1731573061848,-500.0,0.00022191,2]
[342189369,1731573061860,-500.0,0.00022191,2]
[342189370,1731573061869,-583.8,0.00022191,2]
[342189371,1731573061878,-500.0,0.00022191,2]
[342189372,1731573061887,-500.0,0.00022191,2]
[342189373,1731573061898,-500.0,0.00022191,2]
[342189374,1731573061908,-1972.19,0.00022191,2]
[342189375,1731573061917,-500.0,0.00022191,2]
[342189376,1731573061928,-500.0,0.00022191,2]
[342189377,1731573061937,-500.0,0.00022191,2]
[342189378,1731573061947,-500.0,0.00022191,2]
[342189379,1731573061956,-500.0,0.00022191,2]
[342189380,1731573061965,-500.0,0.00022191,2]
[342189381,1731573061975,-151.0,0.00022191,7]
[342189382,1731573061984,-151.0,0.00022191,7]
[342189383,1731573061994,-247.16204,0.00022191,7]
[342189384,1731573062003,-519.88811488,0.00022191,2]
[342189385,1731573062012,-503.42058121,0.00022191,2]
[342189386,1731573062022,-500.0,0.00022191,2]
[342189387,1731573062031,-887.8,0.00022191,2]